bitfinex-derivatives/quotes_ETHF0:USTF0_20250908
["timestamp","ask_amount","ask_price","bid_price","bid_amount"]
[1757360922283,0.7244,4300.9,4300.8,0.6434]
[1757360922883,0.7244,4300.9,4300.8,0.4385]
[1757360923084,0.7244,4300.9,4300.8,0.237]
[1757360924083,0.2941,4300.8,4300.7,33.515]
[1757360924288,0.2941,4300.8,4300.7,33.752]
[1757360924490,0.8471,4300.0,4299.9,0.2015]
[1757360924785,0.8471,4299.5,4298.8,0.2935]
[1757360925082,0.1227,4299.0,4298.9,0.6434]
[1757360925286,0.6313,4299.0,4298.9,0.6434]
[1757360925485,0.6313,4299.0,4298.9,0.82549719]
[1757360925687,0.2941,4299.4,4298.9,1.11899719]
[1757360925876,0.2145,4299.1,4299.0,0.4064]
[1757360926081,0.2145,4299.1,4299.0,0.6434]
[1757360926082,0.4303,4299.1,4299.0,0.6434]
[1757360926587,0.7288,4299.1,4299.0,0.6434]
[1757360926980,0.2985,4299.1,4299.0,0.9372]
[1757360927888,0.5031,4299.1,4299.0,0.9372]
[1757360928085,0.5031,4299.1,4299.0,0.2015]
[1757360928285,0.5031,4299.1,4299.0,0.6506]
[1757360928491,0.5031,4299.1,4299.0,0.9444]
[1757360928687,0.3273,4299.5,4299.4,0.4292]
[1757360928889,0.1227,4300.0,4299.4,0.96]
[1757360929290,0.1227,4300.0,4299.4,0.6662]
[1757360929997,0.2985,4299.9,4299.4,0.6662]
[1757360930194,0.1227,4300.0,4299.4,0.6662]
[1757360930394,0.2046,4299.6,4299.5,0.2938]
[1757360930590,0.5031,4299.6,4299.5,0.723]
[1757360930787,0.1227,4300.5,4299.6,0.2938]
[1757360930994,0.1227,4301.0,4299.8,0.3027]
[1757360930995,0.2985,4300.9,4299.8,0.3027]
[1757360931191,0.5031,4300.9,4300.8,0.2171]
[1757360931492,0.7131,4300.9,4300.8,0.4541]
[1757360931896,0.7131,4300.9,4300.8,0.237]
[1757360932597,0.7131,4300.9,4300.8,0.077]
[1757360934413,4.7131,4300.9,4300.8,0.077]
[1757360935112,4.7131,4300.9,4299.9,0.3027]
[1757360935312,0.4146,4300.1,4300.0,0.2481]
[1757360935510,0.7131,4300.1,4300.0,0.2481]
[1757360936810,0.7131,4300.1,4300.0,0.4602]
[1757360937314,0.7131,4300.1,4300.0,0.7629]
[1757360939218,0.7131,4300.1,4300.0,0.4602]
[1757360939910,0.7131,4300.1,4299.1,0.3027]
[1757360940112,0.2985,4299.9,4299.3,0.3027]
[1757360940517,0.7131,4299.9,4299.8,0.2171]
[1757360941420,0.7131,4299.9,4299.8,0.4541]
[1757360941721,0.7131,4299.9,4299.8,0.6662]
[1757360944324,0.2985,4299.9,4299.8,0.9689]
[1757360944620,0.1224,4300.5,4299.8,0.9689]
[1757360944808,0.2985,4300.4,4299.8,0.9689]
[1757360945012,0.5031,4299.9,4299.8,0.9689]
[1757360945511,0.1224,4300.5,4299.9,0.3027]
[1757360945718,0.5031,4300.0,4299.9,0.7319]
[1757360947025,0.8355,4300.0,4299.9,0.7319]
[1757360947325,0.8355,4300.0,4299.9,0.4292]
[1757360947717,0.8355,4300.0,4299.9,0.7319]
[1757360949823,0.8355,4300.0,4299.9,0.4292]
[1757360950224,0.8355,4300.0,4299.9,0.7319]
[1757360952230,0.8355,4300.0,4299.9,0.4292]
[1757360953721,0.2985,4299.9,4299.1,2.0909754]
[1757360953935,0.7131,4299.2,4299.1,0.2171]
[1757360954228,0.7131,4299.2,4299.1,0.4531]
[1757360955226,0.7131,4299.2,4298.8,0.18695247]
[1757360955431,0.7131,4298.9,4298.8,0.7319]
[1757360955630,0.7131,4298.9,4298.8,0.9679]
[1757360956625,0.7131,4298.9,4298.8,0.42577809]
[1757360956831,0.3126,4298.8,4298.7,33.492]
[1757360957030,0.3126,4298.8,4298.7,33.728]
[1757360959534,0.3126,4298.8,4298.7,34.0535]
[1757360960422,0.3126,4298.8,4298.7,33.728]
[1757360961233,0.3126,4298.8,4298.7,33.492]
[1757360961435,0.3126,4298.8,4298.7,33.728]
[1757360962428,0.3126,4298.8,4298.7,33.492]
[1757360962633,0.3126,4298.8,4298.7,33.728]
[1757360963232,0.3126,4298.8,4298.7,34.0535]
[1757360964033,0.4764,4298.9,4298.8,0.737]
[1757360965435,0.789,4298.9,4298.8,0.737]
[1757360965739,1.1999,4298.9,4298.8,0.4115]
[1757360965933,1.1999,4298.9,4298.8,0.2005]
[1757360966138,0.8873,4298.9,4298.8,0.236]
[1757360966732,1.1999,4298.9,4298.8,0.973]
[1757360967031,0.9909,4298.9,4298.8,0.973]
[1757360968837,1.1999,4298.9,4298.8,0.973]
[1757360972532,1.1999,4298.9,4298.8,0.6475]
[1757360981344,0.4764,4298.9,4298.8,5.20562]
[1757360982739,0.4764,4298.9,4298.8,4.973]
[1757360986047,1.23183361,4301.3,4299.0,0.1187]
[1757360986244,0.1185,4301.5,4299.2,0.3004]
[1757360986441,0.1185,4301.5,4299.4,0.3004]
[1757360986644,0.1185,4301.5,4299.5,0.3547]
[1757360986845,0.1185,4301.5,4299.7,0.3004]
[1757360987047,0.1185,4301.5,4299.8,0.236]
[1757360987346,0.4132,4300.0,4299.9,0.7176]
[1757360988048,0.7292,4300.0,4299.9,0.7176]
[1757360989346,0.7292,4300.0,4299.9,0.3004]
[1757360989550,0.316,4299.9,4299.8,0.5364]
[1757360989849,0.7292,4299.9,4299.8,0.7398]
[1757360991551,0.4132,4299.9,4299.8,0.9536]
[1757360992150,0.7292,4299.9,4299.8,0.9536]
[1757360992446,0.7292,4299.9,4299.8,0.7398]
[1757360992652,4.7292,4299.9,4299.6,0.236]
[1757360992849,0.7292,4299.9,4299.6,0.236]
[1757360993244,0.7292,4299.9,4299.6,0.5364]
[1757360993446,0.7292,4299.7,4299.6,0.7398]
[1757360995455,0.7292,4299.8,4299.7,0.7176]
[1757360995753,0.316,4300.2,4299.7,0.7176]
[1757360995949,0.316,4300.2,4299.8,0.3004]
[1757360996253,0.7292,4300.2,4300.1,0.5038]
[1757360996655,0.7292,4300.2,4300.1,0.7176]
[1757360997352,0.521,4300.4,4300.2,0.3004]
[1757360997661,0.7292,4301.7,4301.6,0.2034]
[1757360997954,0.7292,4301.7,4301.6,0.5038]
[1757360999257,0.7292,4301.7,4301.6,0.7176]
[1757361000454,0.7292,4301.7,4300.1,0.152]
[1757361000455,0.4132,4300.0,4299.9,0.7176]
[1757361000953,0.4132,4299.6,4299.3,0.236]
[1757361001153,0.316,4300.1,4299.3,0.6532]
[1757361001361,0.3209,4300.4,4300.0,0.8363]
[1757361001651,0.2103,4300.1,4300.0,0.8363]
[1757361001857,0.1224,4300.0,4299.5,0.4191]
[1757361002048,0.0049,4300.4,4299.6,0.3004]
[1757361002248,0.4181,4300.4,4300.3,0.2034]
[1757361002448,0.4181,4300.4,4299.6,0.3004]
[1757361002449,0.7341,4300.4,4299.6,0.3004]
[1757361002655,0.4132,4299.9,4299.8,0.237]
[1757361002855,0.7292,4299.9,4299.8,0.237]
[1757361003056,0.7292,4299.9,4299.8,0.9546]
[1757361003448,0.7292,4299.9,4299.8,0.2034]
[1757361003650,4.7292,4299.9,4299.1,0.3004]
[1757361003856,0.7292,4299.9,4298.9,0.237]
[1757361004151,0.7292,4299.0,4298.9,0.4404]
[1757361004349,0.316,4298.9,4298.0,0.1187]
[1757361004556,0.316,4298.1,4297.9,33.499]
[1757361004763,0.2103,4298.0,4297.9,0.7176]
[1757361005459,0.316,4298.9,4298.1,0.3004]
[1757361005654,0.7292,4298.2,4298.1,0.7176]
[1757361006059,0.4132,4298.2,4298.1,0.7176]
[1757361006259,0.2103,4298.2,4298.1,0.7176]
[1757361006653,0.4132,4298.2,4298.1,0.7176]
[1757361006854,0.316,4298.6,4298.1,0.4172]
[1757361007053,0.7292,4298.6,4298.5,0.2034]
[1757361007259,0.4132,4298.6,4298.5,0.8363]
[1757361007660,0.4132,4298.6,4298.5,0.7176]
[1757361007661,0.7292,4298.6,4298.5,0.7176]
[1757361007858,0.4132,4298.2,4298.1,0.2034]
[1757361008055,0.4132,4298.2,4298.1,0.5038]
[1757361008250,0.1185,4299.0,4298.1,0.7176]
[1757361008557,0.316,4298.9,4298.2,0.3004]
[1757361008759,0.2103,4298.3,4298.2,0.7176]
[1757361009367,0.4132,4298.3,4298.2,0.7176]
[1757361009662,0.316,4298.2,4298.0,0.3004]
[1757361009851,0.0904,4298.5,4298.0,0.3004]
[1757361010058,0.7292,4298.1,4298.0,0.5038]
[1757361010454,0.7292,4298.1,4297.5,0.1187]
[1757361010660,0.7292,4297.8,4297.7,0.5038]
[1757361010856,0.316,4297.7,4297.5,0.3004]
[1757361011056,0.4132,4297.1,4297.0,0.2034]
[1757361011361,0.4132,4297.1,4297.0,0.8363]
[1757361011760,0.7292,4297.1,4297.0,0.7176]
[1757361012358,0.7292,4297.1,4297.0,0.8363]
[1757361012865,0.1224,4298.0,4297.0,0.5359]
[1757361013162,0.7292,4297.9,4297.8,0.5038]
[1757361013365,0.4132,4297.9,4297.8,0.7176]
[1757361013767,0.7292,4297.9,4297.8,0.7176]
[1757361015260,0.316,4297.8,4297.2,0.237]
[1757361015456,0.7292,4297.8,4297.7,0.2034]
[1757361015764,0.7292,4297.8,4297.7,0.7176]
[1757361015960,0.4132,4297.8,4297.7,0.7176]
[1757361016467,0.7194,4297.8,4297.7,0.7176]
[1757361017570,0.2103,4297.8,4297.7,0.7176]
[1757361018365,0.7223,4297.8,4297.7,0.7176]
[1757361018571,0.3062,4297.7,4297.1,0.5575]
[1757361018766,0.1993,4297.2,4297.1,0.7177]
[1757361018967,0.4051,4297.2,4297.1,0.7177]
[1757361019371,0.4051,4296.3,4296.2,0.3205]
[1757361019679,0.7113,4296.3,4296.2,0.5184]
[1757361021769,0.7113,4296.3,4296.2,0.7177]
[1757361024568,0.3062,4296.6,4296.2,0.7177]
[1757361024774,0.1185,4297.0,4295.8,0.237]
[1757361024775,0.7113,4297.0,4296.9,0.5184]
[1757361024971,0.8298,4297.0,4296.1,0.3205]
[1757361030074,0.3062,4295.5,4294.0,0.1212]
[1757361030377,0.4051,4294.6,4294.5,0.4417]
[1757361030575,0.4247,4295.0,4294.0,0.8389]
[1757361030576,0.1993,4294.1,4294.0,0.8389]
[1757361031474,0.3062,4294.4,4294.0,0.8389]
[1757361031676,0.5055,4294.4,4294.3,0.3972]
[1757361031877,0.1993,4294.4,4294.3,0.7177]
[1757361032574,0.3062,4294.9,4294.3,0.7177]
[1757361032773,0.1993,4294.6,4294.5,0.5184]
[1757361033071,0.1993,4294.6,4294.5,0.8389]
[1757361033272,0.4051,4294.6,4294.5,0.8389]
[1757361033873,0.7113,4294.6,4294.5,0.8389]
[1757361034068,0.7113,4294.6,4294.5,0.7177]
[1757361034272,0.7113,4294.6,4294.5,0.5184]
[1757361035871,0.4051,4294.6,4294.5,0.8389]
[1757361036074,0.1993,4294.6,4294.5,0.8389]
[1757361036574,0.7113,4294.6,4294.5,0.8389]
[1757361036773,0.7113,4294.6,4294.5,0.5184]
[1757361036975,0.1993,4294.2,4294.1,0.7177]
[1757361037880,0.4051,4294.2,4294.1,0.7177]
[1757361038576,0.1993,4294.2,4294.1,0.7177]
[1757361038778,0.3062,4294.5,4294.1,0.7177]
[1757361038973,0.3062,4294.5,4294.2,0.3205]
[1757361039174,0.7113,4294.5,4294.4,0.3972]
[1757361039378,0.7113,4294.5,4294.4,0.7177]
[1757361039979,0.4051,4294.5,4294.4,0.7177]
[1757361040781,0.7113,4294.5,4294.4,0.7177]
[1757361041985,0.3062,4294.9,4294.5,0.1212]
[1757361042184,0.7113,4294.9,4294.8,0.5184]
[1757361042885,0.4051,4294.1,4294.0,0.6396]
[1757361043186,0.4051,4294.1,4294.0,0.8389]
[1757361043478,0.3062,4295.4,4294.1,0.3205]
[1757361043689,0.3062,4295.2,4294.1,0.3205]
[1757361043879,0.8934934,4295.1,4294.1,0.3205]
[1757361044184,0.8934934,4295.1,4294.0,0.1212]
[1757361044185,0.4051,4295.0,4294.9,0.7177]
[1757361044787,0.7113,4295.0,4294.9,0.7177]
[1757361045680,1.29949251,4295.0,4294.9,0.5184]
[1757361045977,1.29949251,4295.0,4294.6,0.3205]
[1757361046183,0.4008,4294.7,4294.6,0.7453]
[1757361046387,0.7033,4294.7,4294.6,0.7453]
[1757361047273,0.4008,4294.7,4294.6,0.7453]
[1757361047477,0.7033,4294.7,4294.6,0.7453]
[1757361048188,0.4008,4294.7,4294.6,0.7453]
[1757361048388,0.1966,4294.7,4294.6,0.7453]
[1757361049084,0.4008,4296.1,4296.0,0.5587]
[1757361049282,0.4008,4296.1,4295.0,0.3422]
[1757361049283,0.4008,4295.1,4295.0,0.3422]
[1757361049476,0.1966,4295.1,4295.0,0.5587]
[1757361049686,0.4991,4295.5,4295.4,0.2147]
[1757361049885,1.08862371,4295.5,4295.4,0.7453]
[1757361050385,1.29282371,4295.5,4295.4,0.7453]
[1757361050977,0.99032371,4295.5,4295.4,0.7453]
[1757361052184,0.58952371,4295.5,4295.4,0.7453]
[1757361052387,0.1966,4296.1,4296.0,0.1275]
[1757361052685,0.78651436,4296.1,4296.0,0.8728]
[1757361052888,0.99071436,4296.1,4296.0,0.8728]
[1757361053085,1.29321436,4296.1,4296.0,0.8728]
[1757361053682,0.99071436,4296.1,4296.0,0.8728]
[1757361054283,1.29321436,4296.1,4296.0,0.8728]
[1757361054484,1.29321436,4296.1,4296.0,0.5288]
[1757361055288,1.29321436,4296.1,4296.0,0.2147]
[1757361055490,0.3025,4295.7,4295.1,0.3141]
[1757361055689,0.1966,4295.2,4295.1,0.7453]
[1757361057196,0.7033,4295.2,4294.6,0.3141]
[1757361057489,0.1966,4294.7,4294.6,0.7453]
[1757361058182,0.3025,4295.0,4294.6,0.7453]
[1757361058387,0.3025,4295.0,4294.7,0.3141]
[1757361058893,0.7033,4295.0,4294.9,0.5288]
[1757361059290,0.4008,4294.7,4294.6,0.5288]
[1757361059491,0.7033,4294.7,4294.6,0.5288]
[1757361059795,0.3025,4295.1,4294.7,0.3141]
[1757361060094,0.78800437,4295.0,4294.9,0.4312]
[1757361060297,0.78800437,4295.0,4294.9,0.7453]
[1757361061394,0.1966,4295.1,4295.0,0.4416]
[1757361061590,0.78802637,4295.1,4295.0,0.8728]
[1757361061793,0.3025,4295.9,4295.0,0.8728]
[1757361061997,0.9922419,4295.8,4295.7,0.4312]
[1757361062190,0.9922419,4295.8,4295.7,0.7453]
[1757361063085,0.5914419,4295.8,4295.7,0.7453]
[1757361063292,0.3025,4296.5,4295.7,0.4312]
[1757361063590,0.4008,4295.9,4295.8,0.7453]
[1757361063999,0.99227227,4295.9,4295.8,0.7453]
[1757361064701,1.29477227,4295.9,4295.8,0.7453]
[1757361065392,1.29483547,4295.9,4295.8,0.7453]
[1757361066193,0.7033,4295.9,4295.8,0.7453]
[1757361066500,1.23183361,4296.9,4295.8,0.4312]
[1757361066703,0.1966,4296.7,4296.6,0.4312]
[1757361066896,0.99239015,4296.7,4296.6,0.7453]
[1757361067200,1.29489015,4296.7,4296.6,0.7453]
[1757361067498,0.99239015,4296.7,4296.6,0.7453]
[1757361068290,0.1966,4296.7,4296.6,0.7453]
[1757361068796,0.4008,4296.7,4296.6,0.7453]
[1757361068999,0.7033,4296.7,4296.1,0.3141]
[1757361069498,0.4008,4295.6,4295.5,0.3422]
[1757361069799,0.7033,4295.1,4294.6,0.3141]
[1757361069995,0.4008,4295.1,4294.5,0.1275]
[1757361070500,0.1966,4294.7,4294.6,0.2147]
[1757361070799,0.1966,4294.7,4294.6,0.7453]
[1757361071397,0.7033,4294.7,4294.6,0.7453]
[1757361072301,0.4008,4294.7,4294.6,0.7453]
[1757361072495,0.1966,4294.7,4294.6,0.7453]
[1757361072902,0.4008,4294.7,4294.6,0.7453]
[1757361074393,0.5171,4294.7,4294.6,0.7453]
[1757361076801,0.3129,4294.7,4294.6,0.7453]
[1757361079704,0.1163,4294.7,4294.6,0.7453]
[1757361080002,0.119,4296.0,4294.6,0.7453]
[1757361080003,0.3244,4296.4,4295.6,0.3134]
[1757361080215,1.33742796,4296.3,4296.2,0.2057]
[1757361081604,1.33742796,4296.3,4296.2,0.5191]
[1757361082004,1.33742796,4296.3,4296.2,0.2057]
[1757361082607,1.33742796,4296.3,4296.2,0.5191]
[1757361083107,0.7455,4296.3,4296.2,0.5191]
[1757361083505,0.211,4296.3,4296.2,0.7206]
[1757361083711,0.4211,4296.4,4296.3,0.7206]
[1757361084011,0.7455,4296.4,4296.3,0.7206]
[1757361084402,0.4211,4296.4,4296.3,0.7206]
[1757361085008,0.7455,4296.4,4296.3,0.7206]
[1757361085409,0.4211,4296.4,4296.3,0.7206]
[1757361087615,0.4211,4296.4,4295.1,0.3134]
[1757361087616,5.80686021,4296.4,4295.1,0.3134]
[1757361087802,0.4211,4294.7,4294.6,0.5191]
[1757361088005,0.4211,4294.7,4294.6,0.7206]
[1757361088414,0.211,4294.7,4294.6,0.7206]
[1757361088810,0.7455,4294.7,4294.6,0.5191]
[1757361090718,5.33693781,4294.7,4293.6,0.3134]
[1757361090910,0.7455,4294.7,4293.6,0.3134]
[1757361091208,0.211,4293.7,4293.6,0.7206]
[1757361091414,0.4211,4293.7,4293.6,0.7206]
[1757361093515,0.433,4294.5,4293.7,0.3134]
[1757361094018,0.3244,4294.5,4293.7,0.3134]
[1757361094313,0.433,4294.5,4293.7,0.3134]
[1757361094620,0.211,4293.8,4293.7,0.7206]
[1757361095415,0.7455,4293.8,4293.7,0.7206]
[1757361097014,0.4211,4293.8,4293.7,0.7206]
[1757361097211,0.211,4293.8,4293.7,0.7206]
[1757361097407,0.7455,4294.5,4294.4,0.2057]
[1757361097613,0.7455,4294.5,4294.4,0.5191]
[1757361097809,0.4211,4294.5,4294.4,0.7206]
[1757361098419,0.211,4294.7,4294.6,0.7206]
[1757361098613,0.4211,4294.7,4294.6,0.7206]
[1757361100422,0.3244,4295.3,4294.7,0.3134]
[1757361100622,0.211,4295.3,4295.2,0.7206]
[1757361100812,15.3211,4295.3,4295.2,0.7206]
[1757361101017,0.7455,4295.3,4295.2,0.7206]
[1757361101422,0.4211,4295.3,4295.2,0.7206]
[1757361102234,0.7455,4295.3,4295.2,0.7206]
[1757361103011,0.7455,4295.3,4295.2,0.5191]
[1757361103216,0.7455,4295.3,4294.6,0.3134]
[1757361106022,0.4005,4294.7,4294.6,0.3134]
[1757361106222,0.7149,4294.7,4294.6,0.5198]
[1757361107621,0.7149,4294.7,4294.1,0.3175]
[1757361108019,0.7149,4294.7,4293.8,0.3175]
[1757361108423,0.1973,4293.9,4293.8,0.5239]
[1757361108725,0.1973,4293.9,4293.8,0.7394]
[1757361109624,0.5117,4294.3,4294.2,0.4219]
[1757361109819,0.1973,4294.3,4294.2,0.7394]
[1757361110328,0.7149,4294.3,4294.2,0.7394]
[1757361113929,0.5117,4294.8,4294.7,0.7394]
[1757361114121,0.1973,4294.8,4294.7,0.7394]
[1757361114322,0.4005,4294.8,4294.7,0.7394]
[1757361114523,0.7149,4294.8,4294.7,0.5239]
[1757361115020,0.7149,4294.8,4294.7,0.7394]
[1757361115222,1.31881527,4294.8,4294.7,0.7394]
[1757361115827,0.60391527,4294.8,4294.7,0.7394]
[1757361116822,0.80121527,4294.8,4294.7,0.7394]
[1757361117022,1.00441527,4294.8,4294.7,0.7394]
[1757361117219,1.31881527,4294.8,4294.7,0.7394]
[1757361118730,1.00441527,4294.8,4294.7,0.7394]
[1757361120633,1.31881527,4294.8,4294.7,0.7394]
[1757361120930,1.00441527,4294.8,4294.7,0.7394]
[1757361122631,0.60391527,4294.8,4294.7,0.7394]
[1757361123037,0.5514,4295.5,4294.7,0.7394]
[1757361123333,1.00535409,4295.4,4295.3,0.7394]
[1757361123534,1.31975409,4295.4,4295.3,0.7394]
[1757361123733,1.00535409,4295.4,4295.3,0.7394]
[1757361124031,0.3144,4295.3,4294.6,0.3175]
[1757361124234,0.6049442,4295.2,4295.1,0.2064]
[1757361124434,1.3198442,4295.2,4295.1,0.5239]
[1757361130739,1.3198442,4295.2,4295.1,0.7394]
[1757361131235,1.3198442,4295.2,4294.5,0.13]
[1757361131435,0.6049442,4295.1,4294.0,0.13]
[1757361131641,0.7149,4294.2,4294.1,0.7394]
[1757361131933,0.7149,4294.2,4294.1,0.5239]
[1757361132337,0.7149,4294.2,4293.6,0.3175]
[1757361132338,1.32004355,4294.2,4293.6,0.3175]
[1757361132538,0.1973,4293.7,4293.6,0.7394]
[1757361134637,0.7149,4292.9,4292.8,0.70093856]
[1757361134842,0.7149,4292.9,4292.8,0.91643856]
[1757361135036,0.4005,4292.9,4292.8,0.91643856]
[1757361135336,0.107,4294.0,4293.0,0.13]
[1757361135541,0.1973,4293.2,4293.1,0.7394]
[1757361135935,0.7149,4293.2,4293.1,0.7394]
[1757361136141,0.7149,4293.2,4293.1,0.5239]
[1757361136338,0.3148,4293.1,4292.9,0.3179]
[1757361136537,0.3148,4292.9,4292.8,0.17703856]
[1757361136839,0.7226,4292.9,4292.8,0.39263856]
[1757361137144,0.7226,4292.9,4292.8,0.71053856]
[1757361138444,0.7226,4292.9,4292.8,0.91063856]
[1757361139849,0.5221,4293.3,4293.2,0.7336]
[1757361140046,0.7226,4293.3,4293.2,0.7336]
[1757361141043,0.2073,4293.3,4293.2,0.7336]
[1757361141249,0.4078,4293.3,4293.0,0.1204]
[1757361141453,0.7226,4293.2,4293.1,0.7336]
[1757361142953,14.9,4293.8,4293.1,0.7336]
[1757361142954,0.3148,4293.5,4293.1,0.7336]
[1757361143150,0.2073,4293.3,4293.2,0.3179]
[1757361143350,15.8596,4293.8,4293.7,0.5335]
[1757361144056,15.8596,4293.8,4293.1,0.3179]
[1757361144862,15.8596,4293.8,4293.7,0.2156]
[1757361145046,15.8596,4293.8,4293.7,0.5335]
[1757361145250,0.6448,4293.8,4293.7,0.7336]
[1757361145854,0.4078,4293.8,4293.7,0.7336]
[1757361146356,0.4078,4293.8,4293.7,0.5335]
[1757361146357,0.7226,4293.8,4293.7,0.5335]
[1757361146555,0.7226,4293.8,4293.7,0.7336]
[1757361146754,14.9,4294.1,4294.0,0.854]
[1757361147060,0.237,4294.2,4294.1,0.518]
[1757361147061,0.2073,4294.2,4294.1,0.518]
[1757361147245,0.4078,4294.2,4294.1,0.7336]
[1757361147451,15.3078,4294.2,4294.1,0.7336]
[1757361147653,0.1192,4295.0,4294.1,0.7336]
[1757361147963,1.56214724,4294.9,4294.8,0.5335]
[1757361148155,16.46214724,4294.9,4294.5,0.1204]
[1757361148355,0.4078,4294.6,4294.5,0.6539]
[1757361148551,1.32514724,4294.6,4294.5,0.6539]
[1757361149261,0.7226,4294.6,4294.5,0.6539]
[1757361149758,0.7226,4294.6,4294.5,0.5335]
[1757361150062,0.4078,4294.6,4294.0,0.1204]
[1757361150258,0.2073,4294.2,4294.1,0.7336]
[1757361150967,0.3148,4294.6,4294.2,0.3179]
[1757361151468,0.7226,4294.6,4294.5,0.5335]
[1757361151763,0.7226,4294.6,4294.5,0.854]
[1757361152564,0.7226,4294.6,4294.5,0.7336]
[1757361152762,0.7226,4294.6,4294.5,0.5335]
[1757361152961,0.4078,4294.1,4294.0,0.336]
[1757361153158,0.7226,4294.1,4294.0,0.854]
[1757361153562,0.4078,4294.1,4294.0,0.854]
[1757361153964,0.3148,4294.5,4294.0,0.5361]
[1757361154160,0.5221,4294.5,4294.4,0.2156]
[1757361154366,0.7226,4294.5,4294.4,0.7336]
[1757361154664,0.2073,4294.5,4294.4,0.7336]
[1757361155373,0.2073,4294.7,4294.6,0.7336]
[1757361155669,0.4078,4294.7,4294.6,0.7336]
[1757361156370,0.7226,4294.7,4294.6,0.7336]
[1757361157469,0.7226,4294.7,4294.6,0.5335]
[1757361157864,0.7226,4294.7,4294.6,0.2156]
[1757361158564,0.7226,4294.7,4294.6,0.5335]
[1757361159170,1.32617359,4294.7,4294.6,0.5335]
[1757361160260,0.3148,4293.9,4293.0,0.1204]
[1757361160466,0.3148,4293.9,4292.5,0.1204]
[1757361160871,0.3148,4293.9,4292.8,0.40995856]
[1757361161172,15.50367687,4293.8,4292.8,0.40995856]
[1757361161366,0.4078,4293.7,4292.8,0.40995856]
[1757361161566,0.7226,4293.4,4293.3,0.2156]
[1757361161766,0.7226,4293.4,4293.3,0.4157]
[1757361162269,0.7226,4293.4,4293.3,0.2156]
[1757361163368,0.7226,4293.4,4293.3,0.4157]
[1757361164371,0.7226,4293.4,4293.3,0.2156]
[1757361164567,0.7226,4293.4,4293.3,0.4157]
[1757361164775,0.7226,4293.4,4293.3,0.7336]
[1757361164970,0.3148,4293.7,4293.3,0.4157]
[1757361165274,0.6453,4294.0,4293.9,0.7336]
[1757361165468,0.8458,4294.0,4293.9,0.4157]
[1757361166473,0.8458,4294.0,4293.9,0.7204]
[1757361167676,0.2989,4294.4,4293.9,0.4157]
[1757361167868,0.5707,4294.5,4294.4,0.4214]
[1757361168177,1.38200925,4294.5,4294.4,0.4214]
[1757361168378,1.68090925,4294.5,4294.4,0.4214]
[1757361169075,1.0765,4294.5,4294.4,0.4214]
[1757361169276,1.68111786,4294.5,4294.4,0.4214]
[1757361169575,1.68111786,4294.5,4294.4,0.2154]
[1757361171581,1.68111786,4294.5,4293.9,0.3047]
[1757361171881,1.32091786,4294.4,4294.3,0.2154]
[1757361172579,1.32091786,4294.4,4293.9,0.3047]
[1757361172782,0.60461786,4294.3,4293.6,0.3047]
[1757361172981,0.2989,4294.2,4293.6,0.3047]
[1757361173181,0.7163,4294.2,4294.1,0.2154]
[1757361173385,1.32168185,4294.2,4294.1,0.2154]
[1757361174683,0.119,4294.0,4293.1,0.3047]
[1757361174879,0.2105,4293.3,4293.2,0.6543]
[1757361175079,0.2105,4293.3,4293.2,0.7261]
[1757361175080,0.5094,4293.3,4293.2,0.7261]
[1757361175375,0.5094,4293.3,4293.2,0.95902]
[1757361175686,0.5094,4293.3,4293.2,0.7261]
[1757361175977,0.4179,4293.5,4293.2,0.4214]
[1757361176173,0.3295,4293.5,4293.4,0.4214]
[1757361176373,0.3295,4293.5,4293.4,0.7261]
[1757361176883,0.2989,4293.5,4293.4,0.7261]
[1757361177082,0.2989,4293.9,4293.0,0.0779]
[1757361177282,0.5094,4293.9,4293.8,0.7261]
[1757361177974,0.7163,4293.9,4293.8,0.4214]
[1757361180084,0.5094,4293.9,4293.8,0.7261]
[1757361180381,0.1232,4294.5,4293.8,0.7261]
[1757361180583,0.60558251,4294.4,4293.8,0.4214]
[1757361180780,0.60558251,4294.3,4293.9,0.3047]
[1757361181084,0.5094,4294.0,4293.9,0.7261]
[1757361181284,0.6284,4294.0,4293.9,0.7261]
[1757361183086,0.8353,4294.0,4293.9,0.2154]
[1757361183288,0.8353,4294.0,4293.4,0.3047]
[1757361183577,0.6284,4293.5,4293.4,0.7261]
[1757361183989,0.6284,4293.5,4293.4,0.95901]
[1757361184184,0.119,4294.0,4293.5,0.3047]
[1757361184381,0.1232,4294.5,4293.9,0.7261]
[1757361184683,0.81617124,4294.4,4294.3,0.2154]
[1757361184985,1.32197124,4294.4,4294.3,0.2154]
[1757361187286,1.11507124,4294.4,4294.3,0.7261]
[1757361187492,0.1192,4295.0,4294.3,0.4214]
[1757361187685,0.2105,4294.5,4294.4,0.7261]
[1757361187992,0.2105,4294.5,4293.5,0.0598]
[1757361187993,0.8353,4294.5,4293.6,0.3047]
[1757361188184,0.2105,4293.9,4293.8,0.4214]
[1757361188385,0.5094,4293.9,4293.8,0.4214]
[1757361188592,0.5094,4293.9,4293.8,0.7261]
[1757361188794,0.7163,4293.9,4293.8,0.4214]
[1757361189083,0.8353,4293.5,4293.4,0.4214]
[1757361191695,0.8353,4293.5,4293.4,0.2154]
[1757361194593,0.8353,4293.5,4292.8,0.17703856]
[1757361194790,0.7163,4292.9,4292.8,0.39243856]
[1757361194984,0.7163,4292.9,4292.8,0.17703856]